[Event "Titled Tuesday Blitz March 07 Early 2023"]
[White "Gheorghiu, Calin"]
[Black "SicilianPanzer"]
[WhiteFideId "1200305"]
[WhiteElo "2223"]
[BlackElo "2244"]
[Result "0-1"]
[Round "06"]
[TimeControl "180+2"]
[Date "2023.03.07"]
[WhiteClock "0:00:01"]
[BlackClock "0:00:08"]

1. e4 {[%clk 0:03:00]}  c6 {[%clk 0:02:55]} 2. d4 {[%clk 0:02:58]}  d5 {[%clk 0:02:54]} 3. e5 {[%clk 0:02:59]}  Bf5 {[%clk 0:02:53]} 4. Nf3 {[%clk 0:02:57]}  e6 {[%clk 0:02:49]} 5. Be2 {[%clk 0:02:57]}  Nd7 {[%clk 0:02:47]} 6. O-O {[%clk 0:02:57]}  c5 {[%clk 0:02:47]} 7. c3 {[%clk 0:02:55]}  Ne7 {[%clk 0:02:45]} 8. dxc5 {[%clk 0:02:53]}  Nxc5 {[%clk 0:02:43]} 9. Nd4 {[%clk 0:02:49]}  Bg6 {[%clk 0:02:39]} 10. Bb5+ {[%clk 0:02:36]}  Nd7 {[%clk 0:02:37]} 11. Re1 {[%clk 0:02:23]}  a6 {[%clk 0:02:34]} 12. Bf1 {[%clk 0:02:22]}  Qc7 {[%clk 0:02:30]} 13. Bf4 {[%clk 0:02:17]}  Nc6 {[%clk 0:02:25]} 14. Nd2 {[%clk 0:02:13]}  Bc5 {[%clk 0:02:14]} 15. N2b3 {[%clk 0:02:04]}  Ba7 {[%clk 0:02:12]} 16. Qg4 {[%clk 0:02:01]}  Ncxe5 {[%clk 0:01:54]} 17. Qg3 {[%clk 0:01:59]}  Bb8 {[%clk 0:01:53]} 18. Re3 {[%clk 0:01:16]}  Qd6 {[%clk 0:01:40]} 19. Rae1 {[%clk 0:01:13]}  f6 {[%clk 0:01:37]} 20. h4 {[%clk 0:00:09]}  O-O {[%clk 0:01:28]} 21. c4 {[%clk 0:00:09]}  dxc4 {[%clk 0:01:14]} 22. Bxc4 {[%clk 0:00:08]}  Bf7 {[%clk 0:01:06]} 23. h5 {[%clk 0:00:06]}  Qe7 {[%clk 0:00:48]} 24. h6 {[%clk 0:00:06]}  g6 {[%clk 0:00:42]} 25. Bf1 {[%clk 0:00:02]}  Bc7 {[%clk 0:00:30]} 26. Nd2 {[%clk 0:00:01]}  Rac8 {[%clk 0:00:20]} 27. Ne4 {[%clk 0:00:01]}  Nc5 {[%clk 0:00:08]} 0-1


[Site "https://www.chess.com"]

[Event "Titled Tuesday Blitz March 07 Early 2023"]
[White "Kohler, Aran"]
[Black "Silvestre, Christian"]
[WhiteFideId "1002856"]
[BlackFideId "30956269"]
[WhiteElo "2236"]
[BlackElo "2384"]
[Result "1-0"]
[Round "06"]
[TimeControl "180+2"]
[Date "2023.03.07"]
[WhiteClock "0:01:48"]
[BlackClock "0:00:03"]

1. e4 {[%clk 0:03:00]}  c5 {[%clk 0:00:40]} 2. Nf3 {[%clk 0:03:00]}  e6 {[%clk 0:00:40]} 3. d4 {[%clk 0:02:55]}  cxd4 {[%clk 0:00:40]} 4. Nxd4 {[%clk 0:02:56]}  a6 {[%clk 0:00:41]} 5. c4 {[%clk 0:02:55]}  Qc7 {[%clk 0:00:42]} 6. a3 {[%clk 0:02:51]}  b6 {[%clk 0:00:43]} 7. Nc3 {[%clk 0:02:51]}  Bb7 {[%clk 0:00:43]} 8. Be2 {[%clk 0:02:51]}  Nf6 {[%clk 0:00:44]} 9. f3 {[%clk 0:02:49]}  Nc6 {[%clk 0:00:41]} 10. Be3 {[%clk 0:02:48]}  Be7 {[%clk 0:00:35]} 11. Nc2 {[%clk 0:02:47]}  O-O {[%clk 0:00:35]} 12. O-O {[%clk 0:02:48]}  d6 {[%clk 0:00:33]} 13. Kh1 {[%clk 0:02:47]}  Rfd8 {[%clk 0:00:33]} 14. Na4 {[%clk 0:02:40]}  Nd7 {[%clk 0:00:29]} 15. Rc1 {[%clk 0:02:41]}  Nc5 {[%clk 0:00:29]} 16. Nc3 {[%clk 0:02:39]}  Nb3 {[%clk 0:00:26]} 17. Rb1 {[%clk 0:02:38]}  Ne5 {[%clk 0:00:25]} 18. Na4 {[%clk 0:02:33]}  Nc5 {[%clk 0:00:25]} 19. Nc3 {[%clk 0:02:31]}  Nb3 {[%clk 0:00:16]} 20. Nd4 {[%clk 0:02:23]}  Nxd4 {[%clk 0:00:12]} 21. Qxd4 {[%clk 0:02:22]}  Nd7 {[%clk 0:00:12]} 22. b4 {[%clk 0:02:21]}  Bf6 {[%clk 0:00:10]} 23. Qd2 {[%clk 0:02:22]}  Ne5 {[%clk 0:00:10]} 24. Rbc1 {[%clk 0:02:14]}  Rac8 {[%clk 0:00:10]} 25. Na4 {[%clk 0:02:12]}  Nd7 {[%clk 0:00:10]} 26. Bd3 {[%clk 0:02:03]}  Be5 {[%clk 0:00:05]} 27. f4 {[%clk 0:02:01]}  Bf6 {[%clk 0:00:05]} 28. Qf2 {[%clk 0:02:01]}  Bc6 {[%clk 0:00:03]} 29. Nxb6 {[%clk 0:02:00]}  Rb8 {[%clk 0:00:02]} 30. Nxd7 {[%clk 0:01:56]}  Qxd7 {[%clk 0:00:03]} 31. Bb6 {[%clk 0:01:54]}  Rdc8 {[%clk 0:00:03]} 32. Ba5 {[%clk 0:01:52]}  Qb7 {[%clk 0:00:03]} 33. Rfe1 {[%clk 0:01:51]}  Be7 {[%clk 0:00:03]} 34. Qe2 {[%clk 0:01:48]} 1-0


[Site "https://www.chess.com"]

[Event "Titled Tuesday Blitz March 07 Early 2023"]
[White "Torres Hernandez, Leslie Carolin"]
[Black "Rios Escobar, Adan"]
[WhiteFideId "8400504"]
[BlackFideId "3403645"]
[WhiteElo "1920"]
[BlackElo "2380"]
[Result "1-0"]
[Round "06"]
[TimeControl "180+2"]
[Date "2023.03.07"]
[WhiteClock "0:00:21"]
[BlackClock "0:00:01"]

1. e4 {[%clk 0:02:59]}  c5 {[%clk 0:02:57]} 2. Nf3 {[%clk 0:03:00]}  d6 {[%clk 0:02:57]} 3. Bb5+ {[%clk 0:02:58]}  Nd7 {[%clk 0:02:56]} 4. a4 {[%clk 0:02:58]}  Nf6 {[%clk 0:02:56]} 5. Nc3 {[%clk 0:02:58]}  g6 {[%clk 0:02:56]} 6. O-O {[%clk 0:02:59]}  a6 {[%clk 0:02:56]} 7. Be2 {[%clk 0:02:56]}  Bg7 {[%clk 0:02:54]} 8. d4 {[%clk 0:02:56]}  cxd4 {[%clk 0:02:51]} 9. Qxd4 {[%clk 0:02:57]}  O-O {[%clk 0:02:51]} 10. Re1 {[%clk 0:02:52]}  Nc5 {[%clk 0:02:36]} 11. Qb4 {[%clk 0:02:52]}  a5 {[%clk 0:02:28]} 12. Qc4 {[%clk 0:02:36]}  Be6 {[%clk 0:02:26]} 13. Nd5 {[%clk 0:02:34]}  Ncxe4 {[%clk 0:02:15]} 14. Nxf6+ {[%clk 0:02:27]}  Nxf6 {[%clk 0:02:13]} 15. Qb5 {[%clk 0:02:26]}  b6 {[%clk 0:01:59]} 16. Be3 {[%clk 0:02:26]}  Nd7 {[%clk 0:01:52]} 17. Nd4 {[%clk 0:02:23]}  Rc8 {[%clk 0:01:43]} 18. Nxe6 {[%clk 0:02:22]}  fxe6 {[%clk 0:01:43]} 19. Bg4 {[%clk 0:02:20]}  Nc5 {[%clk 0:01:31]} 20. Bxc5 {[%clk 0:02:19]}  Rxc5 {[%clk 0:01:30]} 21. Bxe6+ {[%clk 0:02:19]}  Kh8 {[%clk 0:01:31]} 22. Qd3 {[%clk 0:02:18]}  Bxb2 {[%clk 0:01:28]} 23. Rab1 {[%clk 0:02:18]}  Bg7 {[%clk 0:01:26]} 24. c4 {[%clk 0:02:05]}  Qc7 {[%clk 0:01:23]} 25. Bd5 {[%clk 0:01:59]}  Bf6 {[%clk 0:01:10]} 26. Re3 {[%clk 0:01:55]}  Qd7 {[%clk 0:01:05]} 27. Rh3 {[%clk 0:01:51]}  Kg7 {[%clk 0:00:59]} 28. Rxb6 {[%clk 0:01:43]}  Qxa4 {[%clk 0:00:57]} 29. Rb1 {[%clk 0:01:28]}  Qa2 {[%clk 0:00:54]} 30. Qb3 {[%clk 0:01:23]}  Qe2 {[%clk 0:00:38]} 31. Re3 {[%clk 0:01:17]}  Qg4 {[%clk 0:00:26]} 32. Rbe1 {[%clk 0:01:13]}  Bd4 {[%clk 0:00:15]} 33. Rxe7+ {[%clk 0:01:12]}  Kh6 {[%clk 0:00:16]} 34. Bf3 {[%clk 0:01:02]}  Qh4 {[%clk 0:00:12]} 35. g3 {[%clk 0:00:58]}  Qf6 {[%clk 0:00:12]} 36. Qb7 {[%clk 0:00:51]}  Bxf2+ {[%clk 0:00:08]} 37. Kf1 {[%clk 0:00:33]}  Rh8 {[%clk 0:00:02]} 38. Kxf2 {[%clk 0:00:30]}  Rf5 {[%clk 0:00:02]} 39. Qe4 {[%clk 0:00:24]}  Rb8 {[%clk 0:00:01]} 40. Qh4+ {[%clk 0:00:20]}  Qxh4 {[%clk 0:00:01]} 41. gxh4 {[%clk 0:00:21]} 1-0


[Site "https://www.chess.com"]

[Event "Titled Tuesday Blitz March 07 Early 2023"]
[White "Chabris, Christopher"]
[Black "Szyszylo, Rafal"]
[WhiteFideId "2005263"]
[BlackFideId "1109626"]
[WhiteElo "2211"]
[BlackElo "1951"]
[Result "0-1"]
[Round "06"]
[TimeControl "180+2"]
[Date "2023.03.07"]
[WhiteClock "0:00:01"]
[BlackClock "0:00:11"]

1. e4 {[%clk 0:03:00]}  g6 {[%clk 0:02:56]} 2. d4 {[%clk 0:03:00]}  d6 {[%clk 0:02:55]} 3. Nc3 {[%clk 0:03:00]}  Nf6 {[%clk 0:02:53]} 4. Be3 {[%clk 0:02:52]}  c6 {[%clk 0:02:53]} 5. a4 {[%clk 0:02:49]}  Bg7 {[%clk 0:02:50]} 6. Qd2 {[%clk 0:02:40]}  Qa5 {[%clk 0:02:42]} 7. Nf3 {[%clk 0:02:24]}  Nbd7 {[%clk 0:02:40]} 8. Bd3 {[%clk 0:02:08]}  O-O {[%clk 0:02:29]} 9. h3 {[%clk 0:01:52]}  e5 {[%clk 0:02:29]} 10. dxe5 {[%clk 0:01:49]}  dxe5 {[%clk 0:02:27]} 11. Bh6 {[%clk 0:01:46]}  Bxh6 {[%clk 0:02:18]} 12. Qxh6 {[%clk 0:01:46]}  Nc5 {[%clk 0:02:18]} 13. O-O-O {[%clk 0:01:25]}  Nxa4 {[%clk 0:02:12]} 14. Nxa4 {[%clk 0:01:20]}  Qxa4 {[%clk 0:02:12]} 15. Ng5 {[%clk 0:00:49]}  Qa1+ {[%clk 0:02:03]} 16. Kd2 {[%clk 0:00:49]}  Qxb2 {[%clk 0:02:04]} 17. h4 {[%clk 0:00:41]}  Qb4+ {[%clk 0:01:54]} 18. Ke2 {[%clk 0:00:36]}  Qe7 {[%clk 0:01:32]} 19. h5 {[%clk 0:00:33]}  Bg4+ {[%clk 0:01:29]} 20. f3 {[%clk 0:00:33]}  Be6 {[%clk 0:01:27]} 21. Rb1 {[%clk 0:00:16]}  b5 {[%clk 0:01:26]} 22. g4 {[%clk 0:00:14]}  Rfd8 {[%clk 0:01:21]} 23. Nxh7 {[%clk 0:00:12]}  Nxh7 {[%clk 0:01:18]} 24. hxg6 {[%clk 0:00:12]}  fxg6 {[%clk 0:01:19]} 25. Qxg6+ {[%clk 0:00:12]}  Kh8 {[%clk 0:00:59]} 26. Rh6 {[%clk 0:00:11]}  Qf7 {[%clk 0:00:49]} 27. Qxe6 {[%clk 0:00:08]}  Qxe6 {[%clk 0:00:50]} 28. Rxe6 {[%clk 0:00:08]}  Rac8 {[%clk 0:00:49]} 29. Rh1 {[%clk 0:00:07]}  Rd7 {[%clk 0:00:44]} 30. Reh6 {[%clk 0:00:06]}  Kg8 {[%clk 0:00:43]} 31. g5 {[%clk 0:00:06]}  Rcc7 {[%clk 0:00:30]} 32. g6 {[%clk 0:00:06]}  Nf8 {[%clk 0:00:30]} 33. Rh8+ {[%clk 0:00:06]}  Kg7 {[%clk 0:00:31]} 34. Ke3 {[%clk 0:00:04]}  Nxg6 {[%clk 0:00:28]} 35. R8h7+ {[%clk 0:00:04]}  Kf6 {[%clk 0:00:29]} 36. R7h6 {[%clk 0:00:04]}  Rg7 {[%clk 0:00:28]} 37. Rg1 {[%clk 0:00:05]}  Kf7 {[%clk 0:00:27]} 38. Bf1 {[%clk 0:00:04]}  Nf4 {[%clk 0:00:27]} 39. Rgh1 {[%clk 0:00:02]}  a6 {[%clk 0:00:24]} 40. c4 {[%clk 0:00:03]}  Rd7 {[%clk 0:00:18]} 41. Rh8 {[%clk 0:00:02]}  b4 {[%clk 0:00:16]} 42. c5 {[%clk 0:00:02]}  a5 {[%clk 0:00:15]} 43. Bc4+ {[%clk 0:00:02]}  Kf6 {[%clk 0:00:15]} 44. R1h6+ {[%clk 0:00:02]}  Kg5 {[%clk 0:00:14]} 45. Rh1 {[%clk 0:00:01]}  Kf6 {[%clk 0:00:13]} 46. R1h6+ {[%clk 0:00:01]}  Rg6 {[%clk 0:00:11]} 0-1


[Site "https://www.chess.com"]

[Event "Titled Tuesday Blitz March 07 Early 2023"]
[White "Thomas, Anysia"]
[Black "McLaren, Brian"]
[WhiteFideId "670472"]
[BlackFideId "2604612"]
[WhiteElo "2091"]
[BlackElo "2132"]
[Result "1-0"]
[Round "06"]
[TimeControl "180+2"]
[Date "2023.03.07"]
[WhiteClock "0:01:09"]
[BlackClock "0:02:11"]

1. d4 {[%clk 0:03:00]}  d5 {[%clk 0:02:58]} 2. c4 {[%clk 0:03:00]}  e6 {[%clk 0:02:58]} 3. Nf3 {[%clk 0:03:01]}  c6 {[%clk 0:02:58]} 4. g3 {[%clk 0:02:57]}  f5 {[%clk 0:02:57]} 5. Bg2 {[%clk 0:02:56]}  Bd6 {[%clk 0:02:57]} 6. O-O {[%clk 0:02:55]}  Qf6 {[%clk 0:02:57]} 7. b3 {[%clk 0:02:54]}  Ne7 {[%clk 0:02:56]} 8. Ba3 {[%clk 0:02:54]}  Bc7 {[%clk 0:02:52]} 9. e3 {[%clk 0:02:47]}  Nd7 {[%clk 0:02:52]} 10. Nbd2 {[%clk 0:02:47]}  O-O {[%clk 0:02:51]} 11. Rc1 {[%clk 0:02:47]}  Re8 {[%clk 0:02:45]} 12. Bb2 {[%clk 0:02:46]}  Ng6 {[%clk 0:02:44]} 13. Nb1 {[%clk 0:02:23]}  Qe7 {[%clk 0:02:33]} 14. Nc3 {[%clk 0:02:21]}  Nf6 {[%clk 0:02:32]} 15. Qc2 {[%clk 0:02:13]}  Ne4 {[%clk 0:02:32]} 16. Nxe4 {[%clk 0:02:10]}  fxe4 {[%clk 0:02:31]} 17. Ne5 {[%clk 0:02:10]}  Nxe5 {[%clk 0:02:27]} 18. dxe5 {[%clk 0:02:11]}  Qg5 {[%clk 0:02:25]} 19. f4 {[%clk 0:01:16]}  exf3 {[%clk 0:02:24]} 20. Rxf3 {[%clk 0:01:15]}  Bxe5 {[%clk 0:02:18]} 21. h4 {[%clk 0:01:15]}  Qh5 {[%clk 0:02:15]} 22. g4 {[%clk 0:01:15]}  Qxg4 {[%clk 0:02:11]} 23. Bxe5 {[%clk 0:01:14]}  Qxh4 {[%clk 0:02:11]} 24. Rh3 {[%clk 0:01:09]} 1-0


[Site "https://www.chess.com"]

[Event "Titled Tuesday Blitz March 07 Early 2023"]
[White "Liu, Kelsey"]
[Black "Bashirli, Saadat"]
[WhiteFideId "30944481"]
[BlackFideId "13429990"]
[WhiteElo "2294"]
[BlackElo "1408"]
[Result "0-1"]
[Round "06"]
[TimeControl "180+2"]
[Date "2023.03.07"]
[WhiteClock "0:00:02"]
[BlackClock "0:00:19"]

1. e4 {[%clk 0:03:00]}  c5 {[%clk 0:02:59]} 2. Nf3 {[%clk 0:02:59]}  g6 {[%clk 0:02:59]} 3. d4 {[%clk 0:02:59]}  cxd4 {[%clk 0:02:59]} 4. Qxd4 {[%clk 0:03:00]}  Nf6 {[%clk 0:02:55]} 5. Nc3 {[%clk 0:02:59]}  Nc6 {[%clk 0:02:55]} 6. Qa4 {[%clk 0:02:59]}  d6 {[%clk 0:02:54]} 7. e5 {[%clk 0:02:44]}  dxe5 {[%clk 0:02:53]} 8. Nxe5 {[%clk 0:02:42]}  Bd7 {[%clk 0:02:52]} 9. Nxd7 {[%clk 0:02:39]}  Qxd7 {[%clk 0:02:52]} 10. Be3 {[%clk 0:02:40]}  Bg7 {[%clk 0:02:47]} 11. Rd1 {[%clk 0:02:36]}  Qg4 {[%clk 0:02:46]} 12. Qb5 {[%clk 0:01:49]}  O-O {[%clk 0:02:39]} 13. h3 {[%clk 0:01:48]}  Qb4 {[%clk 0:02:38]} 14. Be2 {[%clk 0:01:41]}  Qxb5 {[%clk 0:02:36]} 15. Nxb5 {[%clk 0:01:42]}  a6 {[%clk 0:02:33]} 16. Nc3 {[%clk 0:01:33]}  Rad8 {[%clk 0:02:32]} 17. O-O {[%clk 0:01:33]}  Rxd1 {[%clk 0:02:29]} 18. Rxd1 {[%clk 0:01:33]}  Rd8 {[%clk 0:02:28]} 19. Kf1 {[%clk 0:01:32]}  Rxd1+ {[%clk 0:02:26]} 20. Nxd1 {[%clk 0:01:31]}  Nd5 {[%clk 0:02:25]} 21. Bc5 {[%clk 0:01:29]}  Kf8 {[%clk 0:02:20]} 22. c4 {[%clk 0:01:22]}  Nf4 {[%clk 0:02:16]} 23. Bf3 {[%clk 0:01:20]}  Nd3 {[%clk 0:02:15]} 24. Ba3 {[%clk 0:01:21]}  Ke8 {[%clk 0:02:06]} 25. Ke2 {[%clk 0:01:17]}  Nde5 {[%clk 0:01:56]} 26. b3 {[%clk 0:01:06]}  Nxf3 {[%clk 0:01:53]} 27. Kxf3 {[%clk 0:01:06]}  Kd7 {[%clk 0:01:51]} 28. Ne3 {[%clk 0:01:05]}  e6 {[%clk 0:01:46]} 29. Ke4 {[%clk 0:01:04]}  f5+ {[%clk 0:01:41]} 30. Kd3 {[%clk 0:01:04]}  e5 {[%clk 0:01:38]} 31. f3 {[%clk 0:01:04]}  Ke6 {[%clk 0:01:11]} 32. Nd5 {[%clk 0:01:04]}  e4+ {[%clk 0:01:01]} 33. fxe4 {[%clk 0:01:02]}  Ne5+ {[%clk 0:01:01]} 34. Ke3 {[%clk 0:01:01]}  Bh6+ {[%clk 0:01:00]} 35. Kd4 {[%clk 0:00:57]}  Nc6+ {[%clk 0:00:59]} 36. Kd3 {[%clk 0:00:42]}  Ne5+ {[%clk 0:00:54]} 37. Kd4 {[%clk 0:00:39]}  Nc6+ {[%clk 0:00:54]} 38. Kc5 {[%clk 0:00:32]}  fxe4 {[%clk 0:00:53]} 39. Kb6 {[%clk 0:00:28]}  e3 {[%clk 0:00:52]} 40. Nc3 {[%clk 0:00:29]}  Nd8 {[%clk 0:00:44]} 41. Kc7 {[%clk 0:00:26]}  Bg5 {[%clk 0:00:43]} 42. Ne2 {[%clk 0:00:12]}  b5 {[%clk 0:00:34]} 43. c5 {[%clk 0:00:12]}  Kd5 {[%clk 0:00:32]} 44. b4 {[%clk 0:00:08]}  Kc4 {[%clk 0:00:31]} 45. c6 {[%clk 0:00:09]}  Kd5 {[%clk 0:00:30]} 46. Kb6 {[%clk 0:00:05]}  Nxc6 {[%clk 0:00:29]} 47. Kxa6 {[%clk 0:00:05]}  Kc4 {[%clk 0:00:30]} 48. Kb6 {[%clk 0:00:05]}  Nxb4 {[%clk 0:00:29]} 49. Bc1 {[%clk 0:00:03]}  Kd3 {[%clk 0:00:28]} 50. Ng3 {[%clk 0:00:03]}  Kc4 {[%clk 0:00:20]} 51. a3 {[%clk 0:00:02]}  Nd3 {[%clk 0:00:20]} 52. Bb2 {[%clk 0:00:02]}  Nxb2 {[%clk 0:00:19]} 0-1


[Site "https://www.chess.com"]

[Event "Titled Tuesday Blitz March 07 Early 2023"]
[White "Lauridsen, Jesper Morch"]
[Black "Johnson, Ben"]
[WhiteFideId "1401890"]
[BlackFideId "2010917"]
[WhiteElo "2290"]
[BlackElo "2153"]
[Result "1-0"]
[Round "06"]
[TimeControl "180+2"]
[Date "2023.03.07"]
[WhiteClock "0:02:31"]
[BlackClock "0:01:05"]

1. d4 {[%clk 0:03:00]}  Nf6 {[%clk 0:02:59]} 2. Nf3 {[%clk 0:03:01]}  e6 {[%clk 0:02:58]} 3. e3 {[%clk 0:03:01]}  d5 {[%clk 0:02:53]} 4. Bd3 {[%clk 0:03:02]}  Be7 {[%clk 0:02:51]} 5. O-O {[%clk 0:03:02]}  O-O {[%clk 0:02:50]} 6. b3 {[%clk 0:03:03]}  c5 {[%clk 0:02:47]} 7. Bb2 {[%clk 0:03:03]}  b6 {[%clk 0:02:44]} 8. Nbd2 {[%clk 0:03:01]}  Ba6 {[%clk 0:02:40]} 9. c4 {[%clk 0:02:59]}  Nc6 {[%clk 0:02:34]} 10. Ne5 {[%clk 0:02:53]}  Nxe5 {[%clk 0:02:30]} 11. dxe5 {[%clk 0:02:53]}  Nd7 {[%clk 0:02:30]} 12. Qc2 {[%clk 0:02:48]}  g6 {[%clk 0:02:24]} 13. cxd5 {[%clk 0:02:48]}  Bxd3 {[%clk 0:02:23]} 14. Qxd3 {[%clk 0:02:47]}  exd5 {[%clk 0:02:11]} 15. Qxd5 {[%clk 0:02:48]}  Qc7 {[%clk 0:02:00]} 16. Nc4 {[%clk 0:02:44]}  Bg5 {[%clk 0:01:22]} 17. e6 {[%clk 0:02:41]}  fxe6 {[%clk 0:01:05]} 18. Qxg5 {[%clk 0:02:31]} 1-0


[Site "https://www.chess.com"]

[Event "Titled Tuesday Blitz March 07 Early 2023"]
[White "Clawitter, Craig"]
[Black "ritanovikova"]
[WhiteFideId "2023105"]
[WhiteElo "2289"]
[BlackElo "2129"]
[Result "0-1"]
[Round "06"]
[TimeControl "180+2"]
[Date "2023.03.07"]
[WhiteClock "0:00:01"]
[BlackClock "0:01:18"]

1. e4 {[%clk 0:03:00]}  d5 {[%clk 0:02:59]} 2. exd5 {[%clk 0:03:00]}  Qxd5 {[%clk 0:03:00]} 3. Nc3 {[%clk 0:03:01]}  Qd6 {[%clk 0:03:01]} 4. d4 {[%clk 0:03:02]}  Nf6 {[%clk 0:02:59]} 5. Nf3 {[%clk 0:03:02]}  a6 {[%clk 0:03:00]} 6. g3 {[%clk 0:03:02]}  Bf5 {[%clk 0:03:00]} 7. Bg2 {[%clk 0:03:02]}  e6 {[%clk 0:03:00]} 8. O-O {[%clk 0:03:02]}  Nc6 {[%clk 0:03:00]} 9. Bf4 {[%clk 0:03:01]}  Qb4 {[%clk 0:02:59]} 10. Ne5 {[%clk 0:02:54]}  Nxe5 {[%clk 0:02:55]} 11. Bxe5 {[%clk 0:02:34]}  O-O-O {[%clk 0:02:53]} 12. Qf3 {[%clk 0:01:55]}  Bg4 {[%clk 0:02:43]} 13. Qf4 {[%clk 0:01:50]}  Bd6 {[%clk 0:02:36]} 14. a3 {[%clk 0:01:23]}  Bxe5 {[%clk 0:02:35]} 15. dxe5 {[%clk 0:01:21]}  Qxf4 {[%clk 0:02:34]} 16. gxf4 {[%clk 0:01:22]}  Nh5 {[%clk 0:02:30]} 17. Be4 {[%clk 0:00:42]}  Nxf4 {[%clk 0:02:27]} 18. f3 {[%clk 0:00:42]}  Bh3 {[%clk 0:02:22]} 19. Rfd1 {[%clk 0:00:41]}  b6 {[%clk 0:02:12]} 20. Kf2 {[%clk 0:00:35]}  g6 {[%clk 0:02:10]} 21. Bc6 {[%clk 0:00:09]}  Bf5 {[%clk 0:02:06]} 22. Ne4 {[%clk 0:00:09]}  Bxe4 {[%clk 0:02:03]} 23. Bxe4 {[%clk 0:00:08]}  g5 {[%clk 0:01:58]} 24. Ke3 {[%clk 0:00:06]}  Ng6 {[%clk 0:01:57]} 25. Bxg6 {[%clk 0:00:06]}  hxg6 {[%clk 0:01:56]} 26. Rg1 {[%clk 0:00:04]}  Rxh2 {[%clk 0:01:53]} 27. Rxg5 {[%clk 0:00:04]}  Rxc2 {[%clk 0:01:53]} 28. Rg4 {[%clk 0:00:03]}  Rxb2 {[%clk 0:01:52]} 29. Rf4 {[%clk 0:00:03]}  Rd7 {[%clk 0:01:51]} 30. Rh1 {[%clk 0:00:04]}  Rb3+ {[%clk 0:01:50]} 31. Kf2 {[%clk 0:00:04]}  Rb5 {[%clk 0:01:39]} 32. Rh8+ {[%clk 0:00:03]}  Kb7 {[%clk 0:01:39]} 33. Rf8 {[%clk 0:00:03]}  Rxe5 {[%clk 0:01:38]} 34. R8xf7 {[%clk 0:00:03]}  Red5 {[%clk 0:01:38]} 35. Rxd7 {[%clk 0:00:02]}  Rxd7 {[%clk 0:01:38]} 36. Rf6 {[%clk 0:00:03]}  g5 {[%clk 0:01:31]} 37. Rxe6 {[%clk 0:00:03]}  Rf7 {[%clk 0:01:30]} 38. Rg6 {[%clk 0:00:02]}  Rf5 {[%clk 0:01:29]} 39. Kg3 {[%clk 0:00:02]}  b5 {[%clk 0:01:27]} 40. Kg4 {[%clk 0:00:03]}  Rc5 {[%clk 0:01:27]} 41. Rxg5 {[%clk 0:00:03]}  Rxg5+ {[%clk 0:01:20]} 42. Kxg5 {[%clk 0:00:03]}  c5 {[%clk 0:01:20]} 43. f4 {[%clk 0:00:04]}  b4 {[%clk 0:01:20]} 44. axb4 {[%clk 0:00:04]}  cxb4 {[%clk 0:01:21]} 45. f5 {[%clk 0:00:05]}  b3 {[%clk 0:01:22]} 46. f6 {[%clk 0:00:05]}  b2 {[%clk 0:01:23]} 47. f7 {[%clk 0:00:06]}  b1=Q {[%clk 0:01:23]} 48. f8=Q {[%clk 0:00:06]}  Qg1+ {[%clk 0:01:21]} 49. Kh4 {[%clk 0:00:04]}  Qh2+ {[%clk 0:01:21]} 50. Kg4 {[%clk 0:00:04]}  Qg2+ {[%clk 0:01:21]} 51. Kh4 {[%clk 0:00:04]}  Qe4+ {[%clk 0:01:21]} 52. Kg3 {[%clk 0:00:03]}  Qd3+ {[%clk 0:01:19]} 53. Kh4 {[%clk 0:00:03]}  Qc4+ {[%clk 0:01:19]} 54. Kg3 {[%clk 0:00:03]}  Qb3+ {[%clk 0:01:18]} 55. Kh4 {[%clk 0:00:03]}  Qa4+ {[%clk 0:01:18]} 56. Kg3 {[%clk 0:00:03]}  Qc6 {[%clk 0:01:18]} 57. Kh4 {[%clk 0:00:01]}  Kb6 {[%clk 0:01:18]} 0-1


[Site "https://www.chess.com"]

[Event "Titled Tuesday Blitz March 07 Early 2023"]
[White "Kriti Mayur Patel"]
[Black "Wilson, Elvin"]
[WhiteFideId "35061780"]
[BlackFideId "2014874"]
[WhiteElo "1306"]
[BlackElo "2279"]
[Result "0-1"]
[Round "06"]
[TimeControl "180+2"]
[Date "2023.03.07"]
[WhiteClock "0:00:14"]
[BlackClock "0:00:05"]

1. e4 {[%clk 0:03:00]}  e6 {[%clk 0:02:56]} 2. d4 {[%clk 0:03:00]}  d5 {[%clk 0:02:56]} 3. Nc3 {[%clk 0:03:01]}  Bb4 {[%clk 0:02:54]} 4. exd5 {[%clk 0:03:01]}  exd5 {[%clk 0:02:53]} 5. Bd3 {[%clk 0:03:01]}  Nf6 {[%clk 0:02:52]} 6. Ne2 {[%clk 0:03:01]}  O-O {[%clk 0:02:52]} 7. a3 {[%clk 0:03:00]}  Be7 {[%clk 0:02:44]} 8. O-O {[%clk 0:03:00]}  c6 {[%clk 0:02:43]} 9. Bf4 {[%clk 0:02:58]}  Re8 {[%clk 0:02:43]} 10. Bg3 {[%clk 0:02:50]}  Nbd7 {[%clk 0:02:43]} 11. f4 {[%clk 0:02:49]}  Nf8 {[%clk 0:02:43]} 12. f5 {[%clk 0:02:44]}  c5 {[%clk 0:02:35]} 13. Bb5 {[%clk 0:02:16]}  Bd7 {[%clk 0:02:30]} 14. Be5 {[%clk 0:02:08]}  Ng4 {[%clk 0:02:21]} 15. Nf4 {[%clk 0:01:53]}  Ne3 {[%clk 0:02:14]} 16. Qf3 {[%clk 0:01:43]}  Nxf1 {[%clk 0:02:09]} 17. Rxf1 {[%clk 0:01:37]}  cxd4 {[%clk 0:01:53]} 18. Bxd7 {[%clk 0:01:24]}  Nxd7 {[%clk 0:01:43]} 19. Ncxd5 {[%clk 0:01:20]}  Nxe5 {[%clk 0:01:40]} 20. Qg3 {[%clk 0:01:08]}  Bh4 {[%clk 0:01:28]} 21. Qh3 {[%clk 0:00:56]}  Bg5 {[%clk 0:01:26]} 22. Qg3 {[%clk 0:00:27]}  Rc8 {[%clk 0:01:12]} 23. f6 {[%clk 0:00:19]}  g6 {[%clk 0:00:41]} 24. Ne7+ {[%clk 0:00:11]}  Rxe7 {[%clk 0:00:37]} 25. Qxg5 {[%clk 0:00:10]}  Re8 {[%clk 0:00:15]} 26. Qh6 {[%clk 0:00:09]}  Qxf6 {[%clk 0:00:15]} 27. Nh5 {[%clk 0:00:07]}  Qh8 {[%clk 0:00:13]} 28. Nf6+ {[%clk 0:00:07]}  Qxf6 {[%clk 0:00:13]} 29. Rxf6 {[%clk 0:00:08]}  Ng4 {[%clk 0:00:13]} 30. Qf4 {[%clk 0:00:06]}  Re1+ {[%clk 0:00:11]} 31. Qf1 {[%clk 0:00:05]}  Rxf1+ {[%clk 0:00:11]} 32. Rxf1 {[%clk 0:00:05]}  Rxc2 {[%clk 0:00:11]} 33. Rd1 {[%clk 0:00:06]}  Rc4 {[%clk 0:00:10]} 34. h3 {[%clk 0:00:06]}  Nf6 {[%clk 0:00:10]} 35. Rd3 {[%clk 0:00:07]}  Ne4 {[%clk 0:00:09]} 36. Kf1 {[%clk 0:00:07]}  Nc5 {[%clk 0:00:09]} 37. Ke2 {[%clk 0:00:07]}  Nxd3 {[%clk 0:00:09]} 38. Kxd3 {[%clk 0:00:08]}  Rc6 {[%clk 0:00:09]} 39. Kxd4 {[%clk 0:00:09]}  Kf8 {[%clk 0:00:10]} 40. Ke5 {[%clk 0:00:09]}  Ke7 {[%clk 0:00:10]} 41. Kf4 {[%clk 0:00:10]}  Rc5 {[%clk 0:00:10]} 42. g4 {[%clk 0:00:10]}  g5+ {[%clk 0:00:09]} 43. Kg3 {[%clk 0:00:10]}  Ke6 {[%clk 0:00:10]} 44. h4 {[%clk 0:00:11]}  Rd5 {[%clk 0:00:09]} 45. hxg5 {[%clk 0:00:11]}  Rxg5 {[%clk 0:00:09]} 46. Kh4 {[%clk 0:00:12]}  h6 {[%clk 0:00:10]} 47. b4 {[%clk 0:00:11]}  Ke5 {[%clk 0:00:10]} 48. a4 {[%clk 0:00:12]}  Kf4 {[%clk 0:00:10]} 49. a5 {[%clk 0:00:13]}  Rxg4+ {[%clk 0:00:10]} 50. Kh5 {[%clk 0:00:13]}  Rg5+ {[%clk 0:00:10]} 51. Kxh6 {[%clk 0:00:13]}  Kf5 {[%clk 0:00:09]} 52. Kh7 {[%clk 0:00:13]}  Rg6 {[%clk 0:00:09]} 53. b5 {[%clk 0:00:14]}  a6 {[%clk 0:00:07]} 54. b6 {[%clk 0:00:14]}  Kf6 {[%clk 0:00:06]} 55. Kh8 {[%clk 0:00:14]}  Rh6+ {[%clk 0:00:05]} 56. Kg8 {[%clk 0:00:14]}  Kg6 {[%clk 0:00:06]} 57. Kf8 {[%clk 0:00:14]}  f5 {[%clk 0:00:05]} 58. Kg8 {[%clk 0:00:14]}  Kf6 {[%clk 0:00:04]} 59. Kf8 {[%clk 0:00:14]}  Rh8# {[%clk 0:00:05]} 0-1


[Site "https://www.chess.com"]